bitfinex/quotes_SOLUSD_20250902
["timestamp","ask_amount","ask_price","bid_price","bid_amount"]
[1756772779958,0.1,197.88,197.87,103.33419418]
[1756772780365,0.1,197.88,197.87,105.35853618]
[1756772781973,0.1,197.88,197.87,100.97375922]
[1756772782169,0.1,197.88,197.87,145.37853618]
[1756772782763,0.1,197.88,197.87,204.37853618]
[1756772783579,0.1,197.88,197.87,79.67375922]
[1756772783756,0.1,197.88,197.87,119.69375922]
[1756772783958,0.78,197.88,197.87,61.024342]
[1756772784168,0.78,197.88,197.87,101.044342]
[1756772784356,0.78,197.88,197.87,112.61559401]
[1756772788892,0.78,197.88,197.87,59.0]
[1756772789064,5.83356781,197.88,197.87,59.0]
[1756772789408,5.83356781,197.88,197.84,40.14]
[1756772789580,0.68,197.87,197.84,40.14]
[1756772790092,0.68,197.86,197.84,40.14]
[1756772790277,0.68,197.85,197.84,53.73559401]
[1756772790888,0.1,197.88,197.84,53.73559401]
[1756772790889,0.68,197.87,197.84,53.73559401]
[1756772791084,0.68,197.86,197.84,53.73559401]
[1756772792373,0.68,197.85,197.84,112.73559401]
[1756772792564,0.68,197.85,197.84,99.14]
[1756772792763,0.68,197.85,197.84,59.12]
[1756772792962,0.68,197.85,197.84,0.12]
[1756772793693,5.73433409,197.85,197.84,0.12]
[1756772794090,26.0,197.83,197.82,0.12]
[1756772794595,26.68,197.83,197.82,0.12]
[1756772795891,31.73484506,197.83,197.82,0.12]
[1756772796878,31.73484506,197.83,197.8,0.12]
[1756772797078,0.72,197.82,197.8,0.12]
[1756772797287,0.72,197.82,197.74,0.12]
[1756772797709,4.10315641,197.82,197.74,0.12]
[1756772797912,43.69374651,197.81,197.74,0.12]
[1756772798095,0.72,197.8,197.74,0.12]
[1756772800024,0.72,197.8,197.74,59.12]
[1756772800209,0.72,197.79,197.74,59.12]
[1756772800528,44.650999,197.81,197.74,59.12]
[1756772800728,44.650999,197.81,197.75,0.66]
[1756772800729,39.595594,197.81,197.75,0.66]
[1756772801020,39.595594,197.81,197.75,14.25559401]
[1756772801224,26.0,197.81,197.75,14.25559401]
[1756772801704,31.05538153,197.81,197.75,14.25559401]
[1756772801900,26.0,197.81,197.75,14.25559401]
[1756772802307,31.05545749,197.81,197.75,14.25559401]
[1756772803322,26.0,197.81,197.76,13.59559401]
[1756772803625,0.72,197.8,197.76,13.59559401]
[1756772803798,0.72,197.8,197.75,13.59559401]
[1756772804127,0.72,197.8,197.75,14.25559401]
[1756772805197,0.72,197.79,197.74,0.12]
[1756772805522,0.72,197.78,197.74,0.12]
[1756772806119,0.72,197.78,197.75,59.0]
[1756772806414,0.72,197.77,197.75,59.0]
[1756772806611,0.72,197.76,197.75,59.0]
[1756772806805,26.0,197.75,197.74,0.12]
[1756772807024,26.72,197.75,197.74,0.12]
[1756772807619,5.05633189,197.78,197.74,0.12]
[1756772807803,5.77633189,197.78,197.74,0.12]
[1756772808004,0.72,197.77,197.74,0.12]
[1756772808306,31.77590954,197.79,197.75,0.12]
[1756772808702,31.05590954,197.79,197.75,0.12]
[1756772809009,0.72,197.78,197.75,0.12]
[1756772809526,26.0,197.79,197.75,0.78]
[1756772809725,0.72,197.84,197.76,0.66]
[1756772809924,5.05438401,197.85,197.77,13.59559401]
[1756772810229,5.05438401,197.85,197.78,0.66]
[1756772810429,5.05438401,197.85,197.78,5.71593422]
[1756772811401,5.77438401,197.85,197.78,0.66]
[1756772811711,0.03,197.87,197.8,3.68477696]
[1756772811912,0.03,197.87,197.81,0.66]
[1756772812418,31.08382419,197.87,197.81,0.66]
[1756772814907,31.08382419,197.87,197.81,59.66]
[1756772815308,0.72,197.86,197.81,59.0]
[1756772815502,0.72,197.85,197.81,59.0]
[1756772816934,0.72,197.84,197.81,59.0]
[1756772817230,0.72,197.83,197.81,59.0]
[1756772817409,26.72,197.85,197.81,59.0]
[1756772817614,0.72,197.84,197.81,59.0]
[1756772818337,26.0,197.85,197.81,59.0]
[1756772819142,31.0543458,197.85,197.81,59.0]
[1756772819734,31.7743458,197.85,197.81,59.0]
[1756772820714,0.03,197.87,197.82,0.66]
[1756772821011,0.03,197.87,197.83,5.05484506]
[1756772821230,0.03,197.87,197.82,9.39981094]
[1756772821535,0.03,197.87,197.83,0.66]
[1756772821932,0.03,197.87,197.84,13.59559401]
[1756772822319,0.03,197.87,197.85,0.66]
[1756772823243,0.03,197.87,197.86,0.66]
[1756772823446,0.72,197.86,197.81,99.0]
[1756772823645,0.72,197.86,197.81,99.66]
[1756772824140,26.72,197.85,197.81,59.0]
[1756772824347,26.72,197.85,197.76,19.31216197]
[1756772824348,26.0,197.85,197.77,53.57559401]
[1756772824530,0.72,197.84,197.77,53.57559401]
[1756772825144,5.05484506,197.83,197.77,53.57559401]
[1756772825357,5.05484506,197.83,197.77,59.33194361]
[1756772825650,5.05484506,197.83,197.78,0.7]
[1756772825845,40.01,197.87,197.79,0.7]
[1756772826030,3.3860824,197.86,197.79,0.7]
[1756772826960,3.3860824,197.86,197.8,17.28037097]
[1756772827137,0.03,197.87,197.82,13.59559401]
[1756772827542,0.03,197.87,197.83,0.7]
[1756772828844,0.03,197.87,197.84,13.59559401]
[1756772829045,0.03,197.87,197.84,18.65005424]
[1756772829242,0.03,197.87,197.85,0.7]
[1756772830043,0.03,197.87,197.86,0.7]
[1756772831332,0.03,197.87,197.86,19.34967265]
[1756772831650,0.03,197.87,197.86,14.29559401]
[1756772832157,0.03,197.87,197.86,19.34967265]
[1756772832460,0.03,197.87,197.86,23.03444961]
[1756772832862,0.03,197.87,197.86,49.53985747]
[1756772833160,0.03,197.87,197.86,108.53985747]
[1756772833361,0.03,197.87,197.86,108.03444961]
[1756772833736,0.1,197.88,197.87,13.59559401]
[1756772833962,0.1,197.88,197.87,17.98037097]
[1756772834344,0.1,197.88,197.87,57.96037097]
[1756772834537,0.1,197.88,197.87,17.98037097]
[1756772834738,0.1,197.88,197.87,54.27559401]
[1756772834962,0.1,197.88,197.87,57.96037097]
[1756772835166,0.1,197.88,197.87,63.01419418]
[1756772836743,0.1,197.88,197.87,122.01419418]
[1756772838587,0.1,197.88,197.87,121.99419418]
[1756772839466,0.1,197.88,197.87,72.59559401]
[1756772839767,0.1,197.88,197.87,117.60941722]
[1756772839969,0.1,197.88,197.87,118.30941722]
[1756772841766,0.1,197.88,197.87,112.55559401]
[1756772842942,0.1,197.88,197.87,72.59559401]
[1756772843147,0.82,197.88,197.83,13.59559401]
[1756772843468,0.1,197.88,197.84,40.66]
[1756772843646,0.1,197.88,197.84,39.96]
[1756772844144,0.82,197.88,197.84,39.96]
[1756772844668,0.1,197.88,197.84,39.96]
[1756772844874,0.1,197.88,197.85,13.59559401]
[1756772845045,31.77402949,197.87,197.84,0.12]
[1756772847759,71.73402949,197.87,197.84,0.12]
[1756772848267,5.05402949,197.87,197.84,0.12]
[1756772848462,0.72,197.86,197.84,0.12]
[1756772848860,5.05402949,197.87,197.84,0.12]
[1756772849066,0.72,197.85,197.84,0.12]
[1756772849368,5.77433409,197.85,197.84,0.12]
[1756772849972,5.05433409,197.85,197.84,0.12]
[1756772850169,0.1,197.88,197.84,0.12]
[1756772850570,0.1,197.88,197.84,0.82]
[1756772850774,0.1,197.88,197.85,0.7]
[1756772851077,0.1,197.88,197.84,0.82]
[1756772852576,0.1,197.88,197.85,0.7]
[1756772852964,0.1,197.88,197.84,0.12]
[1756772853165,5.1536523,197.88,197.84,0.82]
[1756772853386,0.1,197.88,197.84,0.82]
[1756772853694,0.1,197.88,197.85,0.7]
[1756772854104,0.1,197.88,197.84,0.12]
[1756772854407,0.1,197.88,197.84,0.82]
[1756772854764,0.1,197.88,197.85,0.7]
[1756772856619,0.1,197.88,197.86,14.26559401]
[1756772856818,0.1,197.88,197.87,17.95037097]
[1756772856980,0.1,197.88,197.87,14.26559401]
[1756772858192,0.1,197.88,197.87,19.31941722]
[1756772859217,0.1,197.88,197.84,0.79]
[1756772859786,0.1,197.88,197.84,59.79]
[1756772859990,0.1,197.88,197.84,64.1745687]
[1756772860190,0.1,197.88,197.84,59.79]
[1756772861185,0.1,197.88,197.85,17.28037097]
[1756772861392,0.1,197.88,197.87,13.59559401]
[1756772861602,0.1,197.88,197.87,17.28037097]
[1756772861782,0.1,197.88,197.87,17.95037097]
[1756772861985,0.1,197.88,197.87,14.26559401]
[1756772862423,0.1,197.88,197.87,19.31941722]
[1756772864211,0.1,197.88,197.85,13.59559401]
[1756772864517,0.1,197.88,197.87,0.67]
[1756772864729,0.1,197.88,197.85,18.64984574]
[1756772865020,0.1,197.88,197.85,19.31984574]
[1756772865404,0.1,197.88,197.84,0.12]
[1756772865405,0.1,197.88,197.84,13.71559401]
[1756772865602,0.1,197.88,197.84,18.77012935]
[1756772865803,0.1,197.88,197.84,19.44012935]
[1756772866021,0.1,197.88,197.85,0.67]
[1756772867099,0.1,197.88,197.86,0.67]
[1756772867304,0.1,197.88,197.87,3.68477696]
[1756772867626,0.1,197.88,197.87,0.67]
[1756772868313,0.1,197.88,197.86,13.59559401]
[1756772868714,0.1,197.88,197.85,67.73891566]
[1756772868915,0.1,197.88,197.85,68.40891566]
[1756772870604,0.1,197.88,197.85,67.73891566]
[1756772870800,0.1,197.88,197.86,0.67]
[1756772872007,0.1,197.88,197.86,5.72406559]
[1756772872207,0.1,197.88,197.87,0.67]
[1756772872704,0.1,197.88,197.87,23.00419418]
[1756772872908,0.03,197.9,197.88,13.59559401]
[1756772873113,0.03,197.9,197.89,60.88514793]
[1756772873332,0.03,197.9,197.89,57.87037097]
[1756772873710,0.03,197.9,197.89,61.55514793]
[1756772874217,0.03,197.9,197.89,57.87037097]
[1756772874434,0.03,197.9,197.89,61.55514793]
[1756772874940,0.03,197.9,197.89,66.60846037]
[1756772875120,0.03,197.9,197.89,62.92368341]
[1756772875711,0.03,197.91,197.89,66.60846037]
[1756772875935,0.66,198.03,197.94,13.59559401]
[1756772876240,0.66,198.02,197.97,3.68477696]
[1756772876532,0.66,198.02,197.96,17.28037097]
[1756772876710,0.66,198.02,197.97,3.68477696]
[1756772876904,0.66,198.02,197.97,9.40580525]
[1756772877137,0.66,198.02,197.97,9.40603523]
[1756772877639,0.66,198.01,197.94,5.72201621]
[1756772877815,0.66,198.01,197.95,17.28037097]
[1756772878624,0.66,198.0,197.94,13.59559401]
[1756772878841,0.66,197.99,197.94,13.59559401]
[1756772879016,0.66,197.98,197.94,13.59559401]
[1756772879359,0.66,197.98,197.95,59.0]
[1756772879712,0.66,197.97,197.95,59.0]
[1756772880013,0.66,197.96,197.91,13.59559401]
[1756772880226,26.0,197.98,197.91,14.26559401]
[1756772880427,0.66,197.96,197.91,13.59559401]
[1756772880625,26.0,197.98,197.91,13.59559401]
[1756772880833,5.05152556,197.96,197.89,45.62331244]
[1756772881046,0.66,197.95,197.88,13.59559401]
[1756772881213,0.66,197.94,197.88,13.59559401]
[1756772882030,5.71211701,197.94,197.88,13.59559401]
[1756772882922,5.71211701,197.94,197.89,59.0]
[1756772883240,0.66,197.93,197.89,59.0]
[1756772883535,0.66,197.92,197.89,59.0]
[1756772883716,0.66,197.91,197.89,59.0]
[1756772884034,0.66,197.9,197.84,0.12]
[1756772885109,5.05282293,197.91,197.85,14.26559401]
[1756772885306,5.05282293,197.91,197.85,0.67]
[1756772886234,0.72,197.93,197.85,14.26559401]
[1756772886434,4.11291773,197.93,197.86,14.26559401]
[1756772886736,0.72,197.92,197.85,13.59559401]
[1756772886926,0.72,197.91,197.86,59.0]
[1756772887123,5.05250929,197.93,197.86,59.0]
[1756772887124,0.72,197.9,197.86,59.0]
[1756772887845,5.77250929,197.93,197.87,0.67]
[1756772888137,5.77250929,197.93,197.86,59.0]
[1756772889133,3.39276811,197.92,197.86,59.0]
[1756772889526,0.72,197.91,197.86,59.0]
[1756772889730,26.72,197.9,197.84,0.12]
[1756772890322,5.05356781,197.88,197.84,0.12]
[1756772890744,5.05356781,197.88,197.84,0.79]
[1756772891130,31.77310019,197.9,197.84,0.12]
[1756772891330,5.05310019,197.9,197.85,0.67]
[1756772891530,5.05254648,197.92,197.86,0.67]
[1756772891846,5.05254648,197.92,197.86,6.56243278]
[1756772892154,5.05254648,197.92,197.87,0.67]
[1756772892344,5.05254648,197.92,197.88,0.67]
[1756772892646,5.05254648,197.92,197.84,0.12]
[1756772892647,5.05254648,197.92,197.85,10.94674749]
[1756772892840,5.05254648,197.92,197.88,59.0]
[1756772894160,26.0,197.95,197.89,0.67]
[1756772894337,3.39609429,197.94,197.89,6.56243278]
[1756772894538,0.72,197.97,197.9,6.56243278]
[1756772894539,3.39609429,197.96,197.9,6.56243278]
[1756772894747,3.39609429,197.95,197.9,6.56243278]
[1756772894925,3.39609429,197.96,197.9,5.89243278]
[1756772895250,3.39609429,197.95,197.91,0.67]
[1756772895555,26.0,197.93,197.84,13.71559401]
[1756772895752,44.01609429,197.92,197.84,13.71559401]
[1756772896044,3.39609429,197.91,197.84,13.71559401]
[1756772896550,5.05305709,197.9,197.84,13.71559401]
[1756772896944,0.72,197.89,197.84,0.12]
[1756772897146,0.72,197.88,197.84,0.12]
[1756772897852,3.39799068,197.89,197.86,0.12]
[1756772898641,5.05356781,197.88,197.86,0.12]
[1756772899556,5.77356781,197.88,197.86,0.12]
[1756772900054,5.05356781,197.88,197.86,0.12]
[1756772900629,0.72,197.88,197.86,0.12]
[1756772901050,5.05331244,197.89,197.86,0.12]
[1756772901275,5.77331244,197.89,197.86,0.12]
[1756772903539,5.05331244,197.89,197.86,0.12]
[1756772903873,44.95280177,197.91,197.87,0.67]
[1756772904638,44.95280177,197.91,197.87,59.67]
[1756772905669,44.95254648,197.92,197.87,59.67]
[1756772905849,3.39754261,197.91,197.87,59.67]
[1756772906885,5.05305709,197.9,197.87,59.67]
[1756772907047,5.05305709,197.9,197.87,59.0]
[1756772907245,26.0,197.87,197.86,0.12]
[1756772907546,69.29763063,197.87,197.86,0.12]
[1756772907764,70.01763063,197.87,197.86,0.12]
[1756772908149,72.04361363,197.87,197.86,0.12]
[1756772909457,77.09743684,197.87,197.86,0.12]
[1756772912654,75.07145384,197.87,197.86,0.12]
[1756772914159,77.09753984,197.87,197.86,0.12]
[1756772914376,77.09753984,197.87,197.84,0.12]
[1756772914575,3.39763063,197.86,197.84,0.12]
[1756772914783,39.9,197.85,197.84,0.12]
[1756772915089,48.01228538,197.85,197.84,0.12]
[1756772915249,48.01228538,197.85,197.82,0.12]
[1756772915250,26.0,197.83,197.82,0.12]
[1756772915451,26.0,197.81,197.8,0.12]
[1756772915646,69.29763063,197.81,197.8,0.12]
[1756772915853,71.99453763,197.81,197.8,0.12]
[1756772916489,77.04989377,197.81,197.8,0.12]
[1756772916973,36.47989377,197.81,197.8,0.12]
[1756772917151,76.37989377,197.81,197.8,0.12]
[1756772917347,77.04989377,197.81,197.8,0.12]
[1756772917579,89.68828414,197.81,197.75,0.12]
[1756772917789,3.39763063,197.8,197.75,0.12]
[1756772917989,26.0,197.78,197.75,0.12]
[1756772918181,43.29763063,197.78,197.75,0.12]
[1756772918378,45.99464063,197.78,197.75,0.12]
[1756772918762,51.05076359,197.78,197.75,0.12]
[1756772919385,47.65313296,197.78,197.75,0.12]
[1756772920281,10.46765987,197.78,197.75,0.12]
[1756772920487,47.00313296,197.78,197.75,0.12]
[1756772920660,33.08313296,197.78,197.75,0.12]
[1756772920858,73.00313296,197.78,197.75,0.12]
[1756772921069,76.38761975,197.78,197.75,0.12]
[1756772921287,73.00313296,197.78,197.75,0.12]
[1756772922167,76.38774189,197.78,197.75,0.12]
[1756772922368,73.00313296,197.78,197.75,0.12]
[1756772923097,76.3879613,197.78,197.75,0.12]
[1756772923280,73.00313296,197.78,197.75,0.12]
[1756772923790,76.38699044,197.78,197.75,0.12]
[1756772924998,73.00313296,197.78,197.75,0.12]
[1756772925378,70.97612296,197.78,197.75,0.84]
[1756772925895,70.97612296,197.78,197.77,0.84]
[1756772926782,31.05612296,197.78,197.77,0.84]
[1756772926990,70.97612296,197.78,197.77,0.84]
[1756772927303,26.0,197.78,197.77,0.84]
[1756772927474,65.92,197.78,197.77,0.84]
[1756772927980,39.92,197.78,197.77,0.84]
[1756772928401,133.8,197.8,197.77,0.84]
[1756772928575,133.8,197.8,197.77,0.12]
[1756772928781,39.92,197.79,197.78,0.72]
[1756772929078,39.92,197.79,197.77,0.12]
[1756772929488,39.92,197.79,197.78,0.72]
[1756772930401,44.97586733,197.79,197.77,59.12]
[1756772930593,44.97586733,197.79,197.77,0.12]
[1756772932892,44.97586733,197.79,197.77,0.84]
[1756772933224,0.03,197.8,197.78,0.72]
[1756772933517,39.92,197.79,197.78,0.72]
[1756772933876,39.92,197.79,197.77,59.12]
[1756772934074,39.92,197.79,197.77,0.12]
[1756772934289,39.92,197.78,197.77,0.12]
[1756772934674,5.08570449,197.8,197.77,0.12]
[1756772934874,65.92,197.79,197.77,0.12]
[1756772935271,0.67,197.78,197.77,0.12]
[1756772935476,4.05427134,197.78,197.75,0.03973474]
[1756772935679,39.92,197.77,197.75,0.03973474]
[1756772935901,26.0,197.75,197.74,0.12]
[1756772936075,69.30427134,197.75,197.73,0.12]
[1756772936275,4.05427134,197.74,197.73,0.12]
[1756772937098,9.11141708,197.74,197.73,0.12]
[1756772937291,9.11141708,197.74,197.72,0.12]
[1756772937602,43.97427134,197.73,197.72,0.12]
[1756772938213,43.97427134,197.73,197.66,0.12]
[1756772938511,3.38427134,197.72,197.66,0.12]
[1756772939009,11.13976063,197.72,197.66,0.12]
[1756772940613,43.97427134,197.71,197.66,0.12]
[1756772941718,49.03304604,197.71,197.66,0.12]
[1756772941900,48.36304604,197.71,197.67,0.72]
[1756772942210,49.03304604,197.71,197.66,0.12]
[1756772942418,26.0,197.68,197.66,0.12]
[1756772942621,65.92,197.67,197.66,0.12]
[1756772943622,70.97893661,197.67,197.66,0.12]
[1756772947723,70.97893661,197.67,197.66,0.77]
[1756772948525,31.05893661,197.67,197.66,0.77]
[1756772948712,70.97893661,197.67,197.66,0.77]
[1756772948912,65.92,197.67,197.66,0.77]
[1756772949423,70.97893661,197.67,197.66,0.77]
[1756772950310,31.05893661,197.67,197.66,0.12]
[1756772950511,70.97893661,197.67,197.66,0.12]
[1756772950713,77.11181508,197.67,197.66,0.12]
[1756772951926,75.08357208,197.67,197.66,0.12]
[1756772952229,74.36357208,197.67,197.66,0.12]
[1756772953707,34.44357208,197.67,197.66,0.12]
[1756772953926,34.44357208,197.67,197.66,0.77]
[1756772954125,74.36357208,197.67,197.66,0.77]
[1756772955027,74.36357208,197.67,197.66,0.12]
[1756772958420,34.44357208,197.67,197.66,0.12]
[1756772958730,48.36357208,197.67,197.66,0.12]
[1756772960832,48.36357208,197.67,197.66,0.77]
[1756772961422,48.36357208,197.67,197.66,0.12]
[1756772962129,8.44357208,197.67,197.66,0.12]
[1756772962331,48.36357208,197.67,197.66,0.12]
[1756772962723,49.08357208,197.67,197.66,0.12]
[1756772963939,48.36357208,197.67,197.66,0.12]
[1756772964834,49.08357208,197.67,197.66,0.12]
[1756772966620,51.11191808,197.67,197.66,0.12]
[1756772967730,26.0,197.65,197.64,0.12]
[1756772967932,69.30463547,197.65,197.64,1e-08]
[1756772968128,70.02463547,197.65,197.64,1e-08]
[1756772968327,72.05339247,197.65,197.64,1e-08]
[1756772968923,31.41339247,197.65,197.64,1e-08]
[1756772969132,69.30463547,197.65,197.64,1e-08]
[1756772969743,74.36408399,197.65,197.64,1e-08]
[1756772970629,34.44408399,197.65,197.64,1e-08]
[1756772970830,74.36408399,197.65,197.64,1e-08]
[1756772971844,34.44408399,197.65,197.64,1e-08]
[1756772972347,74.36408399,197.65,197.64,1e-08]
[1756772972522,34.44408399,197.65,197.64,1e-08]
[1756772972723,74.36408399,197.65,197.64,1e-08]
[1756772973017,75.08408399,197.65,197.64,1e-08]
[1756772973547,74.36408399,197.65,197.64,1e-08]
[1756772976141,34.44408399,197.65,197.64,1e-08]
[1756772976547,74.36408399,197.65,197.64,1e-08]
[1756772978224,74.36408399,197.65,197.64,0.67000001]
[1756772978544,34.44408399,197.65,197.64,0.67000001]
[1756772978948,74.36408399,197.65,197.64,0.67000001]
[1756772979860,48.36408399,197.65,197.64,0.67000001]
[1756772980026,8.44408399,197.65,197.64,0.67000001]
[1756772980228,48.36408399,197.65,197.64,0.67000001]
[1756772980435,8.44408399,197.65,197.64,0.67000001]
[1756772980641,3.38463547,197.65,197.64,0.67000001]
[1756772980948,1.45463547,197.68,197.64,9.41567348]
[1756772981134,39.9,197.69,197.64,8.74567348]
[1756772981529,0.03,197.71,197.66,17.28156297]
[1756772981742,39.9,197.7,197.66,72.59559401]
[1756772982047,39.93,197.71,197.66,72.59559401]
[1756772982251,39.93,197.71,197.66,77.65455101]
[1756772983052,39.93,197.71,197.66,81.34051997]
[1756772983246,0.03,197.71,197.66,81.34051997]
[1756772983746,40.56,197.7,197.66,59.0]
[1756772984057,0.66,197.69,197.64,1e-08]
[1756772984353,39.9,197.68,197.64,1e-08]
[1756772984543,5.05893661,197.67,197.64,1e-08]
[1756772984748,39.9,197.66,197.64,1e-08]
[1756772984946,40.56,197.66,197.64,1e-08]
[1756772985129,0.66,197.65,197.64,1e-08]
[1756772985525,39.9,197.66,197.64,1e-08]
[1756772985738,40.56,197.66,197.64,1e-08]
[1756772986436,0.66,197.66,197.64,1e-08]
[1756772986641,39.9,197.65,197.64,1e-08]
[1756772987861,40.56,197.65,197.64,1e-08]
[1756772988154,26.66,197.65,197.64,1e-08]
[1756772988350,44.78779515,197.65,197.64,1e-08]
[1756772988553,26.0,197.63,197.62,0.12]
[1756772988769,65.9,197.63,197.62,0.12]
[1756772988964,75.88022179,197.63,197.62,0.12]
[1756772989457,71.61996053,197.63,197.62,0.12]
[1756772990157,75.88022179,197.63,197.62,0.12]
[1756772990752,71.61996053,197.63,197.62,0.12]
[1756772990963,75.88022179,197.63,197.62,0.12]
[1756772991931,71.61996053,197.63,197.62,0.12]
[1756772992348,71.61996053,197.63,197.62,1e-08]
[1756772992935,35.12782419,197.63,197.62,1e-08]
[1756772993147,79.28751707,197.63,197.62,1e-08]
[1756772993532,75.02782419,197.63,197.62,1e-08]
[1756772994138,81.0280826,197.63,197.62,1e-08]
[1756772995140,41.1280826,197.63,197.62,1e-08]
[1756772995340,81.0280826,197.63,197.62,1e-08]
[1756772996044,3.40786366,197.63,197.62,1e-08]
[1756772996653,9.12782419,197.63,197.62,1e-08]
[1756772996860,49.02782419,197.63,197.62,1e-08]
[1756772997169,48.36782419,197.63,197.62,1e-08]
[1756772998481,53.28689346,197.63,197.62,1e-08]
[1756772998655,26.0,197.61,197.6,0.2]
[1756772998857,69.30786366,197.61,197.59,0.12]
[1756772999056,8.32708641,197.6,197.57,0.2]
[1756772999256,26.0,197.58,197.57,0.2]
[1756772999476,29.40786366,197.58,197.57,0.2]
[1756772999680,30.06786366,197.58,197.57,0.2]
[1756773000278,22.72469868,197.58,197.57,1e-08]
[1756773000483,26.98392143,197.58,197.57,1e-08]
[1756773000695,26.0,197.55,197.54,1e-08]
[1756773000977,69.30786366,197.55,197.54,1e-08]
[1756773001168,69.96786366,197.55,197.5,0.2]
[1756773001372,26.0,197.51,197.5,0.2]
[1756773001580,3.40786366,197.51,197.5,0.2]
[1756773001761,26.0,197.53,197.5,0.2]
[1756773001955,43.30786366,197.52,197.5,0.2]
[1756773002162,5.06303478,197.51,197.5,0.2]
[1756773002367,9.12700105,197.51,197.5,0.2]
[1756773003486,49.04700105,197.51,197.5,0.2]
[1756773003975,49.04522526,197.51,197.5,0.2]
[1756773004192,61.70281221,197.51,197.46,0.2]
[1756773004396,26.0,197.48,197.46,0.2]
[1756773004564,43.32219048,197.47,197.46,0.2]
[1756773004958,3.40219048,197.47,197.46,0.2]
[1756773005159,43.32219048,197.47,197.46,0.2]
[1756773006077,39.92,197.47,197.46,0.2]
[1756773006280,44.98406036,197.47,197.46,0.2]
[1756773006453,138.0527381,197.53,197.46,0.2]
[1756773006660,3.39506064,197.52,197.46,0.2]
[1756773006861,7.09138185,197.56,197.47,3.68596896]
[1756773007084,43.31382493,197.55,197.47,3.68596896]
[1756773007268,39.92,197.55,197.47,3.68596896]
[1756773007656,39.94,197.54,197.48,3.68596896]
[1756773007971,39.94,197.53,197.46,59.2]
[1756773008170,39.94,197.53,197.47,17.28156297]
[1756773008171,39.96,197.53,197.47,17.28156297]
[1756773008372,39.96,197.53,197.48,5.06380392]
[1756773008570,39.96,197.53,197.48,8.74977288]
[1756773009373,31.0616294,197.57,197.48,5.06380392]
[1756773009576,43.35238047,197.56,197.48,8.74977288]
[1756773009865,4.09238047,197.55,197.47,13.59559401]
[1756773010059,26.0,197.51,197.46,59.2]
[1756773010257,45.00335136,197.5,197.46,0.2]
[1756773010482,39.98,197.49,197.46,0.2]
[1756773013085,5.064883,197.53,197.46,5.26426329]
[1756773013387,39.94,197.54,197.49,3.68596896]
[1756773013563,39.14,197.54,197.49,3.68596896]
[1756773013889,0.7,197.57,197.49,3.68596896]
[1756773013890,0.7,197.6,197.53,3.68596896]
[1756773014065,39.96,197.59,197.53,3.68596896]
[1756773014386,39.96,197.59,197.54,5.06226587]
[1756773014566,39.98,197.59,197.54,5.06226587]
[1756773015369,39.98,197.59,197.53,5.06246163]
[1756773015568,39.98,197.59,197.53,8.74843059]
[1756773015780,39.98,197.59,197.52,13.59559401]
[1756773016063,39.98,197.59,197.52,19.50801156]
[1756773016687,39.98,197.59,197.53,5.06252214]
[1756773016892,39.98,197.59,197.53,64.06252214]
[1756773017787,0.7,197.6,197.53,64.06252214]